[Event "EYTCC Open U18 2022"]
[Site "Thessaloniki"]
[Date "2022.07.15"]
[Round "4.23"]
[White "Hulka, Valentyn"]
[Black "Zemach, Nadav"]
[Result "1/2-1/2"]
[ECO "C77"]
[WhiteElo "2123"]
[BlackElo "2225"]
[Annotator "ChessBase"]
[PlyCount "67"]
[EventDate "2022.07.12"]
[EventType "team-tourn"]
[EventCountry "GRE"]
[SourceTitle "playchess.com"]
[Source "ChessBase"]
[SourceQuality "1"]
[WhiteTeam "Ukraine"]
[BlackTeam "Israel"]
[WhiteTeamCountry "UKR"]
[BlackTeamCountry "ISR"]
[TimeControl "40/5400+30:1800+30"]

1. e4 {[%emt 0:00:01]} e5 {[%emt 0:00:04]} 2. Nf3 {[%emt 0:00:05]} Nc6 {[%emt 0:00:03]} 3. Bb5 {[%emt 0:00:04]} a6 {[%emt 0:00:07]} 4. Ba4 {[%emt 0:00:04]} Nf6 {[%emt 0:00:06]} 5. Nc3 {[%emt 0:00:03]} Bc5 {[%emt 0:00:24]} 6. O-O {[%emt 0:02:11]} b5 {[%emt 0:00:03]} 7. Bb3 {[%emt 0:00:03]} O-O {[%emt 0:01:21]} 8. d3 {[%emt 0:00:03]} h6 {[%emt 0:00:09]} 9. a4 {[%emt 0:01:57]} Rb8 {[%emt 0:03:29]} 10. axb5 {[%emt 0:00:45]} axb5 {[%emt 0:00:03]} 11. Nd5 {[%emt 0:00:04]} d6 {[%emt 0:02:25]} 12. c3 {[%emt 0:03:55]} Nxd5 {[%emt 0:02:43]} 13. exd5 {[%emt 0:04:47]} Ne7 {[%emt 0:00:07]} 14. d4 {[%emt 0:00:03]} exd4 {[%emt 0:00:06]} 15. Nxd4 {[%emt 0:00:03]} Bd7 {[%emt 0:15:30]} 16. Be3 {[%emt 0:19:51]} Nf5 {[%emt 0:05:37]} 17. Nxf5 {[%emt 0:08:03]} Bxf5 {[%emt 0:00:08]} 18. Qd2 {[%emt 0:16:24]} Bxe3 {[%emt 0:06:49]} 19. Qxe3 {[%emt 0:02:14]} Re8 {[%emt 0:00:03]} 20. Qd2 {[%emt 0:01:00]} Qg5 {[%emt 0:06:48]} 21. f4 {[%emt 0:03:02]} Qf6 {[%emt 0:03:17]} 22. Rae1 {[%emt 0:03:34]} Kf8 {[%emt 0:02:38]} 23. Bc2 {[%emt 0:01:41]} Qg6 {[%emt 0:04:45]} 24. Bxf5 {[%emt 0:01:28]} Qxf5 {[%emt 0:00:02]} 25. b4 {[%emt 0:05:51]} h5 {[%emt 0:08:06]} 26. h3 {[%emt 0:02:00]} Rxe1 {[%emt 0:04:06]} 27. Rxe1 {[%emt 0:00:10]} Re8 {[%emt 0:00:30]} 28. Rxe8+ {[%emt 0:00:39]} Kxe8 {[%emt 0:00:02]} 29. Qe2+ {[%emt 0:00:40]} Kd8 {[%emt 0:00:10]} 30. Qxb5 {[%emt 0:00:39]} Qxf4 {[%emt 0:00:07]} 31. Qb8+ {[%emt 0:00:10]} Kd7 {[%emt 0:00:06]} 32. Qb5+ {[%emt 0:00:04]} Kd8 {[%emt 0:00:11]} 33. Qb8+ {[%emt 0:00:54]} Kd7 {[%emt 0:00:04]} 34. Qb5+ {[%emt 0:00:15]} 1/2-1/2

[Event "EYTCC Open U18 2022"]
[Site "Thessaloniki"]
[Date "2022.07.15"]
[Round "4.24"]
[White "Vagman, Roy"]
[Black "Podolskyi, Mykhailo"]
[Result "1-0"]
[ECO "B23"]
[WhiteElo "2180"]
[BlackElo "2025"]
[Annotator "ChessBase"]
[PlyCount "151"]
[EventDate "2022.07.12"]
[EventType "team-tourn"]
[EventCountry "GRE"]
[SourceTitle "playchess.com"]
[Source "ChessBase"]
[SourceQuality "1"]
[WhiteTeam "Israel"]
[BlackTeam "Ukraine"]
[WhiteTeamCountry "ISR"]
[BlackTeamCountry "UKR"]
[TimeControl "40/5400+30:1800+30"]

1. e4 {[%emt 0:00:04]} c5 {[%emt 0:00:38]} 2. Nc3 {[%emt 0:00:15]} e6 {[%emt 0:02:27]} 3. f4 {[%emt 0:00:35]} Nc6 {[%emt 0:01:58]} 4. Nf3 {[%emt 0:00:16]} d5 {[%emt 0:07:19]} 5. Bb5 {[%emt 0:00:23]} Nge7 {[%emt 0:02:42]} 6. exd5 exd5 {[%emt 0:01:41]} 7. Qe2 {[%emt 0:00:37]} Be6 {[%emt 0:16:14]} 8. Bxc6+ {[%emt 0:23:56]} bxc6 {[%emt 0:02:08]} 9. Na4 {[%emt 0:01:14]} Nf5 {[%emt 0:12:34]} 10. O-O {[%emt 0:11:23]} Be7 {[%emt 0:05:16]} 11. b3 {[%emt 0:10:50]} O-O {[%emt 0:22:18]} 12. Ba3 {[%emt 0:01:38]} c4 {[%emt 0:03:45]} 13. Bxe7 {[%emt 0:00:26]} Nxe7 {[%emt 0:00:02]} 14. Nd4 {[%emt 0:05:40]} Bf5 {[%emt 0:03:15]} 15. Rae1 {[%emt 0:04:13]} Re8 {[%emt 0:01:01]} 16. bxc4 {[%emt 0:01:58]} Bd7 {[%emt 0:02:06]} 17. cxd5 {[%emt 0:07:12]} cxd5 {[%emt 0:01:05]} 18. Nc3 {[%emt 0:01:43]} Nc6 {[%emt 0:06:27]} 19. Qf2 {[%emt 0:00:53]} Qf6 {[%emt 0:00:40]} 20. Nb3 {[%emt 0:08:11]} Nb4 {[%emt 0:04:17]} 21. Rc1 {[%emt 0:01:27]} Qd6 {[%emt 0:01:40]} 22. a3 {[%emt 0:01:45]} Na6 {[%emt 0:00:36]} 23. Qd4 {[%emt 0:00:48]} Bc6 {[%emt 0:01:03]} 24. Rce1 {[%emt 0:01:00]} Nc7 {[%emt 0:00:38]} 25. a4 {[%emt 0:05:43]} Ne6 {[%emt 0:00:14]} 26. Qf2 {[%emt 0:01:28]} d4 {[%emt 0:00:47]} 27. Ne4 {[%emt 0:00:37]} Qd5 {[%emt 0:00:26]} 28. Qg3 {[%emt 0:00:59]} Kh8 {[%emt 0:00:39]} 29. f5 {[%emt 0:00:48]} Nf8 {[%emt 0:00:10]} 30. d3 {[%emt 0:03:24]} f6 {[%emt 0:00:29]} 31. Nd6 {[%emt 0:00:45]} Re3 {[%emt 0:00:45]} 32. Rxe3 {[%emt 0:01:07]} dxe3 {[%emt 0:00:01]} 33. Ne4 {[%emt 0:01:27]} e2 {[%emt 0:00:52]} 34. Re1 {[%emt 0:00:47]} Qxf5 {[%emt 0:00:28]} 35. Nd4 {[%emt 0:00:32]} Qd7 {[%emt 0:00:30]} 36. Nxc6 {[%emt 0:00:31]} Qxc6 {[%emt 0:00:01]} 37. Rxe2 {[%emt 0:00:34]} Qxa4 {[%emt 0:00:10]} 38. h4 {[%emt 0:01:42]} a5 {[%emt 0:01:02]} 39. Kh2 {[%emt 0:00:29]} Qd7 {[%emt 0:00:47]} 40. Nc5 {[%emt 0:00:00]} Qf7 {[%emt 0:00:00]} 41. Qd6 {[%emt 0:05:35]} Rc8 {[%emt 0:07:17]} 42. d4 {[%emt 0:03:34]} Qh5 {[%emt 0:01:01]} 43. Re4 {[%emt 0:01:25]} Ng6 {[%emt 0:02:45]} 44. Qd7 {[%emt 0:06:29]} Rg8 {[%emt 0:01:07]} 45. Qg4 {[%emt 0:06:34]} Qd5 {[%emt 0:01:48]} 46. Qe6 {[%emt 0:02:55]} Qh5 {[%emt 0:02:05]} 47. Qh3 {[%emt 0:04:13]} f5 {[%emt 0:02:22]} 48. g4 {[%emt 0:00:02]} fxg4 {[%emt 0:01:58]} 49. Qxg4 {[%emt 0:00:15]} Qxg4 {[%emt 0:01:45]} 50. Rxg4 {[%emt 0:00:02]} Rd8 {[%emt 0:00:49]} 51. c4 {[%emt 0:02:10]} Rc8 {[%emt 0:01:31]} 52. Re4 {[%emt 0:00:46]} Kg8 {[%emt 0:00:41]} 53. h5 {[%emt 0:00:24]} Nf8 {[%emt 0:00:42]} 54. Kg3 {[%emt 0:01:26]} a4 {[%emt 0:02:52]} 55. Re1 {[%emt 0:00:33]} a3 {[%emt 0:01:46]} 56. Ra1 {[%emt 0:00:41]} Ra8 {[%emt 0:01:13]} 57. Kf4 {[%emt 0:00:24]} a2 {[%emt 0:00:36]} 58. Ke5 {[%emt 0:00:15]} Kf7 {[%emt 0:03:27]} 59. d5 {[%emt 0:00:03]} g5 {[%emt 0:00:43]} 60. Ne4 {[%emt 0:00:54]} g4 {[%emt 0:01:09]} 61. c5 Nd7+ {[%emt 0:03:13]} 62. Kd6 {[%emt 0:00:40]} Nf6 {[%emt 0:00:10]} 63. Nxf6 {[%emt 0:01:30]} Kxf6 {[%emt 0:00:18]} 64. c6 {[%emt 0:00:04]} g3 {[%emt 0:01:15]} 65. c7 {[%emt 0:00:09]} g2 {[%emt 0:00:09]} 66. Kd7 {[%emt 0:00:07]} Ke5 {[%emt 0:00:34]} 67. d6 {[%emt 0:01:28]} Kd4 {[%emt 0:00:56]} 68. c8=Q {[%emt 0:00:24]} Rxc8 {[%emt 0:00:02]} 69. Kxc8 {[%emt 0:00:08]} Kc3 {[%emt 0:00:04]} 70. d7 {[%emt 0:00:43]} Kb2 {[%emt 0:00:09]} 71. d8=Q {[%emt 0:00:58]} Kxa1 {[%emt 0:00:02]} 72. Qb6 {[%emt 0:00:30]} h6 {[%emt 0:00:52]} 73. Qg1+ {[%emt 0:00:07]} Kb2 {[%emt 0:00:02]} 74. Qxg2+ {[%emt 0:00:08]} Kb1 {[%emt 0:00:37]} 75. Qf1+ {[%emt 0:00:07]} Kb2 {[%emt 0:00:02]} 76. Kd7 {[%emt 0:00:49]} 1-0

[Event "EYTCC Open U18 2022"]
[Site "Thessaloniki"]
[Date "2022.07.15"]
[Round "4.25"]
[White "Herega, Nejc"]
[Black "Ratnesan, Ranesh"]
[Result "0-1"]
[ECO "D12"]
[WhiteElo "2160"]
[BlackElo "2269"]
[Annotator "ChessBase"]
[PlyCount "64"]
[EventDate "2022.07.12"]
[EventType "team-tourn"]
[EventCountry "GRE"]
[SourceTitle "playchess.com"]
[Source "ChessBase"]
[SourceQuality "1"]
[WhiteTeam "Slovenia"]
[BlackTeam "England"]
[WhiteTeamCountry "SLO"]
[BlackTeamCountry "ENG"]
[TimeControl "40/5400+30:1800+30"]

1. d4 {[%emt 0:00:07]} d5 {[%emt 0:00:08]} 2. c4 {[%emt 0:00:13]} c6 {[%emt 0:00:08]} 3. Nf3 {[%emt 0:00:18]} Nf6 {[%emt 0:00:09]} 4. e3 {[%emt 0:00:24]} Bf5 {[%emt 0:00:33]} 5. Nc3 {[%emt 0:00:28]} a6 {[%emt 0:00:08]} 6. b3 {[%emt 0:06:45]} e6 {[%emt 0:02:07]} 7. Bb2 {[%emt 0:02:31]} Be7 {[%emt 0:04:45]} 8. Be2 {[%emt 0:03:20]} h6 {[%emt 0:01:45]} 9. Nd2 {[%emt 0:09:16]} O-O {[%emt 0:01:46]} 10. f3 {[%emt 0:10:33]} c5 {[%emt 0:05:07]} 11. cxd5 {[%emt 0:11:19]} exd5 {[%emt 0:03:17]} 12. Na4 {[%emt 0:10:25]} cxd4 {[%emt 0:03:36]} 13. Bxd4 {[%emt 0:01:05]} Nc6 {[%emt 0:01:09]} 14. Bb6 {[%emt 0:02:17]} Qe8 {[%emt 0:06:22]} 15. O-O {[%emt 0:04:54]} Nd7 {[%emt 0:06:25]} 16. Kh1 {[%emt 0:03:34]} Nxb6 {[%emt 0:03:16]} 17. Nxb6 {[%emt 0:00:11]} Rd8 {[%emt 0:00:12]} 18. e4 {[%emt 0:07:05]} dxe4 {[%emt 0:01:31]} 19. fxe4 {[%emt 0:00:02]} Bxe4 {[%emt 0:12:01]} 20. Nxe4 {[%emt 0:05:52]} Rxd1 {[%emt 0:00:10]} 21. Raxd1 {[%emt 0:00:05]} Bd8 {[%emt 0:04:50]} 22. Nd7 {[%emt 0:03:50]} Qxe4 {[%emt 0:03:08]} 23. Bf3 {[%emt 0:02:01]} Qh4 {[%emt 0:03:10]} 24. g3 {[%emt 0:01:45]} Qg5 {[%emt 0:00:13]} 25. Rd5 {[%emt 0:06:06]} Qe3 {[%emt 0:03:04]} 26. Nxf8 {[%emt 0:01:19]} Kxf8 {[%emt 0:00:42]} 27. Rd7 {[%emt 0:00:29]} Ne5 {[%emt 0:04:14]} 28. Rxd8+ {[%emt 0:00:58]} Ke7 {[%emt 0:00:05]} 29. Rdd1 {[%emt 0:02:14]} Nxf3 {[%emt 0:00:23]} 30. Kg2 {[%emt 0:00:29]} Qe2+ {[%emt 0:00:40]} 31. Kh3 {[%emt 0:00:06]} Qxh2+ {[%emt 0:01:11]} 32. Kg4 {[%emt 0:00:04]} Ne5+ {[%emt 0:00:07]} 0-1

[Event "EYTCC Open U18 2022"]
[Site "Thessaloniki"]
[Date "2022.07.15"]
[Round "4.26"]
[White "Stoica, Savas Marin"]
[Black "Olenik Campa, Rudi"]
[Result "0-1"]
[ECO "D35"]
[WhiteElo "2092"]
[BlackElo "2203"]
[Annotator "ChessBase"]
[PlyCount "112"]
[EventDate "2022.07.12"]
[EventType "team-tourn"]
[EventCountry "GRE"]
[SourceTitle "playchess.com"]
[Source "ChessBase"]
[SourceQuality "1"]
[WhiteTeam "England"]
[BlackTeam "Slovenia"]
[WhiteTeamCountry "ENG"]
[BlackTeamCountry "SLO"]
[TimeControl "40/5400+30:1800+30"]

1. d4 {[%emt 0:00:18]} Nf6 {[%emt 0:00:04]} 2. c4 {[%emt 0:00:07]} e6 {[%emt 0:00:03]} 3. Nc3 {[%emt 0:00:06]} d5 {[%emt 0:00:04]} 4. cxd5 {[%emt 0:00:05]} exd5 {[%emt 0:00:02]} 5. Bg5 {[%emt 0:00:07]} Be7 {[%emt 0:00:04]} 6. e3 {[%emt 0:00:04]} c6 {[%emt 0:00:04]} 7. Bd3 {[%emt 0:00:04]} O-O {[%emt 0:00:04]} 8. Qc2 {[%emt 0:00:04]} h6 {[%emt 0:00:57]} 9. Bh4 {[%emt 0:00:05]} Re8 {[%emt 0:00:04]} 10. Nge2 {[%emt 0:00:04]} a5 {[%emt 0:00:04]} 11. O-O {[%emt 0:00:06]} Na6 {[%emt 0:00:04]} 12. a3 {[%emt 0:00:03]} Nc7 {[%emt 0:00:05]} 13. f3 {[%emt 0:00:03]} c5 {[%emt 0:00:21]} 14. Bf2 {[%emt 0:20:43]} Ne6 {[%emt 0:26:02]} 15. dxc5 {[%emt 0:06:31]} Bxc5 {[%emt 0:00:08]} 16. Nb5 {[%emt 0:00:26]} Qb6 {[%emt 0:07:21]} 17. Ned4 {[%emt 0:08:49]} Bd7 {[%emt 0:02:51]} 18. Rfe1 {[%emt 0:17:15]} Rac8 {[%emt 0:12:10]} 19. Qd2 {[%emt 0:03:09]} Red8 {[%emt 0:02:51]} 20. Rad1 {[%emt 0:16:09]} Bxb5 {[%emt 0:04:25]} 21. Nxb5 {[%emt 0:00:27]} Ne4 {[%emt 0:01:14]} 22. Bxe4 {[%emt 0:04:28]} dxe4 {[%emt 0:00:17]} 23. Qe2 {[%emt 0:00:05]} exf3 {[%emt 0:03:10]} 24. gxf3 {[%emt 0:00:16]} Re8 {[%emt 0:03:04]} 25. Qf1 {[%emt 0:11:59]} Ng5 {[%emt 0:00:56]} 26. Kg2 {[%emt 0:00:08]} Qe6 {[%emt 0:02:28]} 27. Bg3 {[%emt 0:00:29]} Qb3 {[%emt 0:13:34]} 28. e4 {[%emt 0:01:37]} Nxf3 {[%emt 0:01:46]} 29. Qxf3 {[%emt 0:00:16]} Qxb5 {[%emt 0:00:06]} 30. Re2 {[%emt 0:00:28]} Rc6 {[%emt 0:03:22]} 31. e5 {[%emt 0:00:57]} Rce6 {[%emt 0:00:53]} 32. Rc2 {[%emt 0:02:13]} Be7 {[%emt 0:07:49]} 33. Rd5 {[%emt 0:00:57]} Qa4 {[%emt 0:02:21]} 34. Qd3 {[%emt 0:01:12]} Rc6 {[%emt 0:02:02]} 35. Re2 {[%emt 0:01:13]} Rcc8 {[%emt 0:02:58]} 36. Rf2 {[%emt 0:04:02]} Rf8 {[%emt 0:00:50]} 37. h3 {[%emt 0:00:56]} Qc6 {[%emt 0:00:42]} 38. Kh2 {[%emt 0:00:03]} Rcd8 {[%emt 0:01:31]} 39. Rxd8 {[%emt 0:00:09]} Rxd8 {[%emt 0:00:06]} 40. Qb3 {[%emt 0:00:00]} Qd5 {[%emt 0:00:00]} 41. Qa4 {[%emt 0:05:14]} h5 {[%emt 0:03:48]} 42. Rg2 {[%emt 0:02:08]} h4 {[%emt 0:08:37]} 43. Bxh4 {[%emt 0:00:35]} Bxh4 {[%emt 0:00:27]} 44. Qxh4 {[%emt 0:00:03]} Qxe5+ {[%emt 0:00:06]} 45. Qg3 {[%emt 0:00:22]} Qxg3+ {[%emt 0:00:28]} 46. Kxg3 {[%emt 0:00:05]} Rd3+ {[%emt 0:00:29]} 47. Kg4 {[%emt 0:00:05]} g6 {[%emt 0:02:27]} 48. h4 {[%emt 0:00:23]} Rd4+ {[%emt 0:02:15]} 49. Kg3 {[%emt 0:00:08]} Kg7 {[%emt 0:00:51]} 50. Rc2 {[%emt 0:00:10]} Rd5 {[%emt 0:00:42]} 51. Re2 {[%emt 0:06:25]} b5 {[%emt 0:00:16]} 52. Re3 {[%emt 0:00:28]} Kf6 {[%emt 0:01:18]} 53. Rf3+ {[%emt 0:01:02]} Kg7 {[%emt 0:02:05]} 54. Re3 {[%emt 0:01:43]} a4 {[%emt 0:02:29]} 55. Rf3 {[%emt 0:00:24]} Rd2 {[%emt 0:00:37]} 56. b3 {[%emt 0:00:10]} Rb2 {[%emt 0:00:21]} 0-1

[Event "EYTCC Open U18 2022"]
[Site "Thessaloniki"]
[Date "2022.07.15"]
[Round "4.27"]
[White "Gregoric, Andraz"]
[Black "Cont, Arya"]
[Result "1/2-1/2"]
[ECO "C63"]
[WhiteElo "2199"]
[BlackElo "1968"]
[Annotator "ChessBase"]
[PlyCount "62"]
[EventDate "2022.07.12"]
[EventType "team-tourn"]
[EventCountry "GRE"]
[SourceTitle "playchess.com"]
[Source "ChessBase"]
[SourceQuality "1"]
[WhiteTeam "Slovenia"]
[BlackTeam "England"]
[WhiteTeamCountry "SLO"]
[BlackTeamCountry "ENG"]
[TimeControl "40/5400+30:1800+30"]

1. e4 {[%emt 0:00:01]} e5 {[%emt 0:00:04]} 2. Nf3 {[%emt 0:00:04]} Nc6 {[%emt 0:00:03]} 3. Bb5 {[%emt 0:00:04]} f5 {[%emt 0:00:04]} 4. d3 {[%emt 0:00:05]} fxe4 {[%emt 0:00:04]} 5. dxe4 {[%emt 0:00:03]} Nf6 {[%emt 0:00:04]} 6. O-O {[%emt 0:00:13]} Bc5 {[%emt 0:00:02]} 7. Bxc6 {[%emt 0:00:11]} bxc6 {[%emt 0:00:03]} 8. Nxe5 {[%emt 0:00:04]} O-O {[%emt 0:00:04]} 9. Nc3 {[%emt 0:00:04]} d6 {[%emt 0:00:04]} 10. Na4 {[%emt 0:00:59]} Qe8 {[%emt 0:00:07]} 11. Nd3 {[%emt 0:00:08]} Bd4 {[%emt 0:00:11]} 12. c3 {[%emt 0:02:21]} Bb6 {[%emt 0:00:16]} 13. Nxb6 {[%emt 0:01:24]} axb6 {[%emt 0:00:06]} 14. f3 {[%emt 0:03:58]} Be6 {[%emt 0:15:11]} 15. b3 {[%emt 0:12:12]} b5 {[%emt 0:05:33]} 16. Nf4 {[%emt 0:12:40]} c5 {[%emt 0:07:30]} 17. Nxe6 {[%emt 0:02:02]} Qxe6 {[%emt 0:00:03]} 18. a4 {[%emt 0:14:23]} bxa4 {[%emt 0:05:33]} 19. bxa4 {[%emt 0:02:33]} Qc4 {[%emt 0:10:28]} 20. Qc2 {[%emt 0:00:37]} Ra5 {[%emt 0:05:06]} 21. Bg5 {[%emt 0:01:56]} Nd7 {[%emt 0:04:11]} 22. Qa2 {[%emt 0:04:06]} Qxa2 {[%emt 0:02:02]} 23. Rxa2 {[%emt 0:00:01]} Rfa8 {[%emt 0:00:40]} 24. Rb1 {[%emt 0:03:20]} Nb6 {[%emt 0:02:06]} 25. Kf2 {[%emt 0:03:48]} Kf7 {[%emt 0:03:22]} 26. Ke3 {[%emt 0:00:59]} Ke6 {[%emt 0:00:50]} 27. g4 {[%emt 0:03:47]} Rxa4 {[%emt 0:01:08]} 28. Rxa4 {[%emt 0:00:29]} Rxa4 {[%emt 0:00:09]} 29. f4 {[%emt 0:07:57]} Ra2 {[%emt 0:08:46]} 30. f5+ {[%emt 0:01:29]} Kd7 {[%emt 0:03:11]} 31. Bf4 {[%emt 0:01:59]} Rc2 {[%emt 0:05:51]} 1/2-1/2

[Event "EYTCC Open U18 2022"]
[Site "Thessaloniki"]
[Date "2022.07.15"]
[Round "4.28"]
[White "Dias, Savin"]
[Black "Kozlovic, Jernej"]
[Result "0-1"]
[ECO "D15"]
[WhiteElo "1894"]
[BlackElo "2088"]
[Annotator "ChessBase"]
[PlyCount "56"]
[EventDate "2022.07.12"]
[EventType "team-tourn"]
[EventCountry "GRE"]
[SourceTitle "playchess.com"]
[Source "ChessBase"]
[SourceQuality "1"]
[WhiteTeam "England"]
[BlackTeam "Slovenia"]
[WhiteTeamCountry "ENG"]
[BlackTeamCountry "SLO"]
[TimeControl "40/5400+30:1800+30"]

1. d4 {[%emt 0:00:02]} d5 {[%emt 0:00:10]} 2. c4 {[%emt 0:00:04]} c6 {[%emt 0:00:09]} 3. Nf3 {[%emt 0:00:04]} Nf6 {[%emt 0:00:11]} 4. Nc3 {[%emt 0:00:03]} a6 {[%emt 0:00:08]} 5. Bg5 {[%emt 0:00:48]} Ne4 {[%emt 0:15:10]} 6. e3 {[%emt 0:01:38]} Nxg5 {[%emt 0:00:56]} 7. Nxg5 {[%emt 0:00:08]} e5 {[%emt 0:08:22]} 8. Nxf7 {[%emt 0:13:08]} Kxf7 {[%emt 0:01:13]} 9. Qh5+ {[%emt 0:08:28]} g6 {[%emt 0:02:57]} 10. Qf3+ {[%emt 0:02:26]} Qf6 {[%emt 0:03:53]} 11. Qxf6+ {[%emt 0:00:35]} Kxf6 {[%emt 0:00:02]} 12. dxe5+ {[%emt 0:02:13]} Kxe5 {[%emt 0:09:58]} 13. f4+ {[%emt 0:02:02]} Kf6 {[%emt 0:08:16]} 14. cxd5 {[%emt 0:00:46]} Bb4 {[%emt 0:00:24]} 15. O-O-O {[%emt 0:02:07]} Bxc3 {[%emt 0:02:27]} 16. bxc3 {[%emt 0:00:07]} Bg4 {[%emt 0:00:56]} 17. Rd4 {[%emt 0:01:28]} cxd5 {[%emt 0:01:04]} 18. h3 {[%emt 0:04:33]} Be6 {[%emt 0:04:07]} 19. g4 {[%emt 0:02:15]} Nc6 {[%emt 0:01:20]} 20. Rd3 {[%emt 0:00:58]} g5 {[%emt 0:03:46]} 21. f5 {[%emt 0:02:30]} Bf7 {[%emt 0:00:18]} 22. Bg2 {[%emt 0:01:18]} Ne5 {[%emt 0:04:27]} 23. Rd4 {[%emt 0:01:35]} h5 {[%emt 0:03:05]} 24. c4 {[%emt 0:06:41]} Rac8 {[%emt 0:02:52]} 25. Kb1 {[%emt 0:02:41]} Rxc4 {[%emt 0:00:41]} 26. Rxc4 {[%emt 0:00:07]} Nxc4 {[%emt 0:00:16]} 27. Rc1 {[%emt 0:00:30]} hxg4 {[%emt 0:00:12]} 28. hxg4 {[%emt 0:00:04]} Rh2 {[%emt 0:00:21]} 0-1

[Event "EYTCC Open U18 2022"]
[Site "Thessaloniki"]
[Date "2022.07.15"]
[Round "4.29"]
[White "Stoimenidis, Dimitrios"]
[Black "Zeneli, Klendi"]
[Result "0-1"]
[ECO "C88"]
[WhiteElo "1993"]
[BlackElo "1921"]
[Annotator "ChessBase"]
[PlyCount "154"]
[EventDate "2022.07.12"]
[EventType "team-tourn"]
[EventCountry "GRE"]
[SourceTitle "playchess.com"]
[Source "ChessBase"]
[SourceQuality "1"]
[WhiteTeam "Greece"]
[BlackTeam "Albania"]
[WhiteTeamCountry "GRE"]
[BlackTeamCountry "ALB"]
[TimeControl "40/5400+30:1800+30"]

1. e4 e5 2. Nf3 Nc6 3. Bb5 a6 4. Ba4 Nf6 5. O-O Be7 6. Re1 b5 7. Bb3 O-O 8. a4 Bb7 9. d3 d6 10. Nc3 b4 11. Nd5 h6 12. a5 Rb8 13. Bd2 Bc8 14. Bc4 Nxd5 15. exd5 Na7 16. d4 exd4 17. Nxd4 Bf6 18. Be3 c5 19. dxc6 Bxd4 20. Bxd4 Nxc6 21. Bb6 Qd7 22. Qd2 Ne5 23. Bd5 {[%emt 0:26:50]} Qg4 {[%emt 1:27:30]} 24. Bc7 {[%emt 0:10:14]} Bb7 {[%emt 0:01:16]} 25. f4 {[%emt 0:00:45]} Bxd5 {[%emt 0:03:27]} 26. fxe5 {[%emt 0:00:51]} Rb5 {[%emt 0:02:17]} 27. exd6 {[%emt 0:10:05]} Bc6 {[%emt 0:00:50]} 28. Re3 {[%emt 0:01:28]} Rd5 {[%emt 0:02:03]} 29. Qe2 {[%emt 0:07:56]} Qd4 {[%emt 0:00:18]} 30. Qf2 {[%emt 0:05:50]} Qxb2 {[%emt 0:01:21]} 31. Rae1 {[%emt 0:04:10]} Rc5 {[%emt 0:00:51]} 32. R1e2 {[%emt 0:02:05]} Qc1+ {[%emt 0:00:36]} 33. Qe1 {[%emt 0:03:12]} Rxc2 {[%emt 0:00:10]} 34. Qxc1 {[%emt 0:01:55]} Rxc1+ {[%emt 0:00:07]} 35. Kf2 {[%emt 0:03:18]} Bb5 {[%emt 0:01:00]} 36. Rd2 {[%emt 0:01:13]} Rc3 {[%emt 0:04:21]} 37. Re1 {[%emt 0:17:54]} Kh7 {[%emt 0:01:41]} 38. Bb6 {[%emt 0:01:41]} b3 {[%emt 0:00:44]} 39. d7 {[%emt 0:01:09]} Bxd7 {[%emt 0:00:52]} 40. Rxd7 {[%emt 0:00:00]} Rc2+ {[%emt 0:00:00]} 41. Re2 {[%emt 0:08:27]} b2 {[%emt 0:02:21]} 42. Rd1 {[%emt 0:07:49]} Rc1 {[%emt 0:00:11]} 43. Ree1 {[%emt 0:00:52]} b1=Q {[%emt 0:00:18]} 44. Rxc1 {[%emt 0:00:20]} Qf5+ {[%emt 0:01:46]} 45. Kg1 {[%emt 0:00:09]} Rc8 {[%emt 0:02:28]} 46. Rxc8 {[%emt 0:01:17]} Qxc8 {[%emt 0:00:09]} 47. h3 {[%emt 0:01:42]} Kg6 {[%emt 0:02:35]} 48. Re3 {[%emt 0:00:34]} f5 {[%emt 0:03:09]} 49. Rd3 {[%emt 0:07:16]} Kf7 {[%emt 0:02:37]} 50. Rf3 {[%emt 0:04:35]} g5 {[%emt 0:01:01]} 51. Re3 {[%emt 0:01:14]} f4 {[%emt 0:01:28]} 52. Rf3 {[%emt 0:00:17]} Kg6 {[%emt 0:00:21]} 53. h4 {[%emt 0:01:55]} Kf5 {[%emt 0:02:34]} 54. hxg5 {[%emt 0:00:22]} hxg5 {[%emt 0:00:22]} 55. Rf1 {[%emt 0:00:37]} Qe6 {[%emt 0:04:41]} 56. Rf2 {[%emt 0:01:09]} Qe5 {[%emt 0:03:56]} 57. g3 {[%emt 0:04:19]} Qe1+ {[%emt 0:02:18]} 58. Kh2 {[%emt 0:01:11]} Kg4 {[%emt 0:01:38]} 59. gxf4 {[%emt 0:01:15]} gxf4 {[%emt 0:00:15]} 60. Kg2 {[%emt 0:02:30]} f3+ {[%emt 0:01:25]} 61. Kh2 {[%emt 0:00:07]} Qe5+ {[%emt 0:00:29]} 62. Kh1 {[%emt 0:01:42]} Kg3 {[%emt 0:02:04]} 63. Kg1 {[%emt 0:00:47]} Qg7 {[%emt 0:01:52]} 64. Ra2 {[%emt 0:00:47]} Qg6 {[%emt 0:01:34]} 65. Rb2 {[%emt 0:00:36]} Kf4+ {[%emt 0:01:23]} 66. Kf1 {[%emt 0:00:32]} Qd3+ {[%emt 0:00:29]} 67. Kf2 {[%emt 0:00:23]} Ke4 {[%emt 0:00:38]} 68. Rb4+ {[%emt 0:00:24]} Kf5 {[%emt 0:00:10]} 69. Rb2 {[%emt 0:00:25]} Kg4 {[%emt 0:00:30]} 70. Kg1 {[%emt 0:00:43]} Qd1+ {[%emt 0:00:33]} 71. Kh2 {[%emt 0:00:30]} Qd6+ {[%emt 0:00:22]} 72. Kg1 {[%emt 0:00:33]} Qe5 {[%emt 0:00:40]} 73. Rf2 {[%emt 0:00:30]} Qg3+ {[%emt 0:00:33]} 74. Kf1 {[%emt 0:00:31]} Qe5 {[%emt 0:00:29]} 75. Kg1 {[%emt 0:00:14]} Kg3 {[%emt 0:00:34]} 76. Rg2+ {[%emt 0:00:20]} Kh3 {[%emt 0:00:34]} 77. Rf2 {[%emt 0:00:21]} Qe1+ {[%emt 0:00:08]} 0-1